bitfinex/quotes_ETHUSD_20220305
["timestamp","ask_amount","ask_price","bid_price","bid_amount"]
[1646501186043,0.0079466,2668.7,2668.3,1.0460312]
[1646501186245,0.0079466,2668.7,2668.4,0.00335931]
[1646501187047,0.0079466,2668.7,2668.3,1.0460312]
[1646501187289,1.53614089,2668.6,2668.4,0.00335928]
[1646501187489,0.0079466,2668.7,2668.4,0.00335928]
[1646501188290,0.0079466,2668.7,2668.3,1.0460312]
[1646501188490,0.0079466,2668.7,2668.4,0.00335927]
[1646501189497,0.0079466,2668.7,2668.4,0.9371]
[1646501189697,0.0079466,2668.7,2668.4,0.94045927]
[1646501190500,0.0079466,2668.7,2668.4,4.44045927]
[1646501190696,0.0079466,2668.7,2668.5,0.3755]
[1646501191041,0.0079466,2668.7,2668.6,3.5]
[1646501192342,0.9295066,2669.6,2668.7,4.5]
[1646501192540,1.5359195,2669.5,2668.8,3.5]
[1646501192739,1.5359195,2669.5,2669.0,1.07735686]
[1646501193339,0.00335934,2669.4,2669.0,1.07735686]
[1646501194245,1.5359195,2669.5,2669.0,1.07735686]
[1646501194645,0.00335931,2669.4,2669.0,1.07735686]
[1646501195493,1.5359195,2669.5,2669.0,1.07735686]
[1646501195691,0.00341829,2669.4,2668.9,0.00341894]
[1646501196691,1.5359195,2669.5,2668.8,0.9468072]
[1646501196894,0.00437827,2669.4,2668.9,0.00341891]
[1646501197095,1.5359195,2669.3,2668.9,0.00341891]
[1646501197293,0.00341827,2669.4,2668.9,0.00341891]
[1646501197495,1.48933777,2669.4,2668.9,0.00341891]
[1646501197710,0.83388487,2669.6,2668.9,0.00341891]
[1646501197895,0.83292487,2669.6,2668.8,0.9468072]
[1646501198094,0.00341827,2669.4,2668.9,0.00341891]
[1646501199143,0.83292487,2669.6,2668.8,0.9468072]
[1646501199342,0.00096,2669.5,2669.0,0.00185965]
[1646501199542,0.83388487,2669.6,2669.0,0.00185965]
[1646501199742,0.83292487,2669.6,2669.0,0.00185965]
[1646501200444,0.83292487,2669.6,2669.1,0.00185962]
[1646501201445,0.83292487,2669.6,2668.8,0.9468072]
[1646501201844,0.00335421,2669.5,2669.1,0.00335481]
[1646501202691,0.83292487,2669.6,2668.8,0.9468072]
[1646501203089,0.0034063,2669.5,2669.1,0.00340691]
[1646501203892,0.83292487,2669.6,2668.8,0.9468072]
[1646501204093,0.0034063,2669.5,2669.1,0.00340691]
[1646501204293,0.0043663,2669.5,2669.1,0.00252703]
[1646501204494,0.0034063,2669.5,2669.1,0.00252703]
[1646501205093,1.20842487,2669.6,2668.3,1.16261121]
[1646501205295,0.00096,2669.5,2668.5,1.11853215]
[1646501205596,1.18265305,2669.3,2668.3,0.25]
[1646501205795,0.00096,2669.2,2668.3,0.25]
[1646501206641,0.00096,2669.2,2668.6,0.00335384]
[1646501206844,1.55911305,2669.3,2668.6,0.00335384]
[1646501207444,2.24631674,2669.3,2668.4,1.08414279]
[1646501208182,2.24631674,2669.3,2668.8,0.0033537]
[1646501208212,1.55815305,2669.3,2668.8,0.0033537]
[1646501208750,0.3755,2669.3,2668.4,1.08414279]
[1646501208949,0.3755,2669.3,2668.9,0.00335363]
[1646501208950,0.37646,2669.3,2668.9,0.00335363]
[1646501209149,0.3755,2669.3,2668.9,0.00335363]
[1646501209995,0.3755,2669.3,2668.6,0.93717]
[1646501210194,0.37646,2669.3,2669.0,0.00335656]
[1646501210397,0.3755,2669.3,2669.0,0.00335656]
[1646501210595,0.00335599,2669.4,2669.0,0.00335656]
[1646501211194,1.89658856,2669.6,2668.4,4.58414279]
[1646501211396,1.89658856,2669.6,2669.1,0.00329429]
[1646501211397,0.00329385,2669.4,2669.1,0.00329429]
[1646501212394,0.83292487,2669.6,2668.9,3.04142434]
[1646501212594,0.00329388,2669.4,2669.1,0.00329431]
[1646501213541,0.83292487,2669.6,2668.9,3.04142434]
[1646501213745,0.00329578,2669.4,2669.1,0.0032962]
[1646501214145,0.00329578,2669.4,2669.1,0.9403062]
[1646501214746,0.00096,2669.8,2669.1,0.93701]
[1646501215045,0.00335797,2669.4,2669.1,0.94036841]
[1646501215245,0.00335797,2669.4,2669.3,1.23495478]
[1646501216047,0.00096,2669.8,2669.0,1.2282]
[1646501216246,0.00335795,2669.5,2669.1,0.00335846]
[1646501217050,1.18180486,2669.5,2669.1,0.00335846]
[1646501217300,1.17844691,2669.5,2668.7,3.634835]
[1646501217490,1.17844691,2669.5,2669.1,0.00336417]
[1646501217491,1.5393182,2669.4,2669.1,0.00336417]
[1646501218294,1.53595449,2669.4,2668.6,1.1892]
[1646501218494,1.53691449,2669.4,2668.6,1.1892]
[1646501218696,1.54027819,2669.4,2669.1,0.00336414]
[1646501218897,1.53595449,2669.3,2669.1,0.00336414]
[1646501219097,1.53595449,2669.2,2669.1,0.00336414]
[1646501219296,1.53931819,2669.4,2669.1,0.00336414]
[1646501219496,1.53595449,2669.4,2668.6,1.1892]
[1646501219698,1.53691449,2669.4,2668.6,1.1892]
[1646501219898,4.06270369,2669.2,2668.3,0.25]
[1646501220098,4.06270369,2669.2,2668.2,0.1872]
[1646501220099,0.3755,2669.0,2668.2,0.1872]
[1646501220298,0.3755,2669.0,2667.8,0.25]
[1646501220299,0.3755,2668.8,2667.8,0.25]
[1646501220497,0.3755,2668.6,2667.5,0.91261121]
[1646501220697,0.3755,2668.4,2667.4,0.91261121]
[1646501220902,5.49095449,2668.5,2667.3,0.00223326]
[1646501220903,0.3755,2668.0,2667.3,2.11461182]
[1646501221147,0.3755,2668.0,2667.3,1.19976735]
[1646501221454,1.91206098,2667.9,2667.3,1.20200061]
[1646501221645,0.3755,2668.2,2667.3,1.19976735]
[1646501221846,1.91206289,2668.1,2667.3,2.11461182]
[1646501222046,1.53656289,2668.0,2667.3,2.11237856]
[1646501222247,1.53656289,2668.0,2667.3,1.19976735]
[1646501222447,4.955,2668.5,2667.3,1.20200061]
[1646501222649,1.53657713,2668.4,2667.3,1.20200061]
[1646501222847,3.8755,2668.3,2667.3,1.20200061]
[1646501223248,3.8755,2668.3,2667.8,1.0614327]
[1646501223452,1.53657713,2668.2,2667.3,0.93988326]
[1646501224054,1.53657713,2668.1,2667.3,0.93988326]
[1646501224254,3.5,2668.3,2667.3,0.93988326]
[1646501224255,4.5,2668.3,2667.3,0.93988326]
[1646501224455,1.53651117,2668.2,2667.5,1.23058665]
[1646501224653,1.53651117,2668.2,2667.6,0.00359623]
[1646501225294,3.5,2668.3,2667.6,0.00359623]
[1646501225491,1.53654438,2668.2,2667.3,0.93988326]
[1646501225892,1.53654438,2668.2,2667.8,0.00359611]
[1646501226493,4.8755,2668.3,2667.8,0.00359611]
[1646501226693,1.3755,2668.3,2667.4,0.98520492]
[1646501227095,0.3755,2668.3,2667.9,0.00359603]
[1646501227899,0.3755,2668.3,2667.4,0.98520492]
[1646501228095,1.86205033,2668.2,2667.3,0.93988326]
[1646501228295,4.8755,2668.3,2668.0,0.00359595]
[1646501228950,5.0627,2668.3,2668.0,0.00359595]
[1646501229148,0.98157291,2667.9,2667.2,1.08586038]
[1646501229348,5.0627,2668.3,2667.3,0.00223326]
[1646501229549,4.8755,2668.3,2668.0,0.00347455]
[1646501229749,1.3755,2668.3,2668.0,0.00347455]
[1646501230150,0.3755,2668.3,2668.0,0.00347455]
[1646501230350,0.3755,2668.3,2667.3,0.93987326]
[1646501230551,0.3755,2668.1,2667.3,0.93987326]
[1646501230751,1.46404534,2668.3,2668.0,0.00347455]
[1646501231550,1.46404534,2668.3,2667.3,0.93987326]
[1646501231751,3.5,2668.2,2668.0,0.00347455]
[1646501231951,1.46404534,2668.3,2668.0,0.00347455]
[1646501232150,3.5,2668.2,2668.0,0.00347455]
[1646501232695,4.5,2668.2,2667.3,0.00223326]
[1646501232895,0.3755,2668.1,2667.3,0.00223326]
[1646501233093,4.5,2668.2,2668.0,0.00337068]
[1646501233293,1.0,2668.2,2668.0,0.00337068]
[1646501233697,1.46404534,2668.3,2668.0,0.00337068]
[1646501233902,1.46404534,2668.3,2667.3,0.93987326]
[1646501234096,3.8755,2668.2,2667.3,0.93987326]
[1646501234298,4.5,2668.2,2668.0,0.00337068]
[1646501234499,1.0,2668.2,2668.0,0.00337068]
[1646501234697,0.6424,2668.4,2668.0,0.00337068]
[1646501235097,3.8755,2668.3,2667.3,0.93987326]
[1646501235296,3.8755,2668.3,2667.3,0.93574405]
[1646501235297,5.96129737,2668.3,2667.3,0.93574405]
[1646501235497,5.96129737,2668.3,2668.1,0.00337061]
[1646501235498,5.58579737,2668.3,2668.1,0.00337061]
[1646501235699,1.0,2668.3,2668.1,0.00337061]
[1646501235901,1.0,2668.3,2667.3,0.93801877]
[1646501236142,0.3755,2668.3,2667.3,0.93801877]
[1646501236741,0.91862655,2668.1,2667.3,0.93801877]
[1646501238042,0.3755,2668.3,2667.3,0.93801877]
[1646501239248,4.45516798,2668.2,2667.3,0.93801877]
[1646501239805,5.45516798,2668.2,2667.3,0.93801877]
[1646501240193,5.45516798,2668.2,2667.6,0.00359623]
[1646501240795,1.95516798,2668.2,2667.6,0.00359623]
[1646501241197,0.3755,2668.3,2667.3,0.93991472]
[1646501241398,0.3755,2668.3,2667.8,0.00359611]
[1646501241599,0.8305,2668.3,2667.8,0.00359611]
[1646501242398,0.8305,2668.3,2667.3,0.93991472]
[1646501242598,0.8305,2668.3,2667.9,0.00352932]
[1646501243545,0.8305,2668.3,2667.3,0.93991472]
[1646501243954,0.8305,2668.3,2668.0,0.00352928]
[1646501244755,0.8305,2668.3,2667.4,0.00227403]
[1646501244955,0.8305,2668.3,2667.4,0.91936699]
[1646501245157,0.8305,2668.3,2668.0,0.00352931]
[1646501245557,0.455,2668.3,2668.0,0.00352931]
[1646501245957,0.455,2668.3,2667.4,0.91936699]
[1646501246355,0.455,2668.3,2668.0,0.00338689]
[1646501246957,0.75738891,2668.5,2668.0,0.00338689]
[1646501247158,0.75738891,2668.5,2667.7,0.9375]
[1646501247398,0.75738891,2668.5,2668.0,0.00338689]
[1646501248295,0.75738891,2668.5,2667.9,0.89148694]
[1646501248296,1.53653747,2668.4,2667.9,0.89148694]
[1646501248497,1.53653747,2668.4,2667.5,1.87495]
[1646501248699,1.53653747,2668.4,2668.0,0.00327263]
[1646501249302,1.91203747,2668.4,2668.0,0.00327263]
[1646501249601,0.57018891,2668.5,2667.5,2.75179543]
[1646501249798,1.02024478,2668.2,2668.0,0.00327044]
[1646501250000,3.5,2668.1,2668.0,0.00327044]
[1646501250199,1.02024478,2668.2,2668.0,0.00327044]
[1646501250400,5.03664761,2668.1,2668.0,0.00327044]
[1646501250601,0.00456414,2667.9,2667.4,1.1574]
[1646501252253,0.00456414,2667.9,2667.5,0.00187919]
[1646501253150,0.00456414,2667.9,2667.4,1.1574]
[1646501253351,0.00456414,2667.9,2667.5,1.87493]
[1646501253553,0.00456414,2667.9,2667.6,0.00317242]
[1646501254552,0.00456414,2667.9,2667.6,0.92789286]
[1646501254803,0.00456414,2667.9,2667.6,0.93106524]
[1646501255593,0.00456414,2667.9,2667.6,0.92789286]
[1646501255995,0.00456414,2667.9,2667.6,0.93105582]
[1646501256798,0.00456414,2667.9,2667.6,0.92789286]
[1646501257000,0.00456414,2667.9,2667.6,0.93105735]
[1646501257998,0.00456414,2667.9,2667.5,1.87493]
[1646501258299,0.00456414,2667.9,2667.6,0.00316449]
[1646501259349,0.00456414,2667.9,2667.5,1.09087289]
[1646501259552,0.00456414,2667.9,2667.6,0.0031635]
[1646501260550,0.00456414,2667.9,2667.5,1.09087289]
[1646501260750,0.00456414,2667.9,2667.6,0.00316527]
[1646501261652,0.00456414,2667.9,2667.4,1.1574]
[1646501261853,0.00456414,2667.9,2667.6,0.00316527]
[1646501262059,0.94816458,2667.8,2667.6,0.00316527]
[1646501262309,5.03678739,2667.7,2667.6,0.00316527]
[1646501262698,6.03678739,2667.7,2667.6,0.00316527]
[1646501262899,6.03678739,2667.7,2667.0,0.00227403]
[1646501263098,1.53678739,2667.6,2667.5,0.00316692]
[1646501264102,1.53678739,2667.6,2667.0,0.00227403]
[1646501264302,3.42930152,2667.8,2667.0,0.00227403]
[1646501264303,1.53678739,2667.5,2667.4,0.0031668]
[1646501264709,1.53678739,2667.7,2667.4,0.0031668]
[1646501264904,1.53672747,2667.6,2667.4,0.0031668]
[1646501265104,1.48113694,2667.8,2667.4,0.0031668]
[1646501265403,1.53671085,2667.7,2667.2,0.00227403]
[1646501265605,1.53671085,2667.7,2667.4,0.0031668]
[1646501266047,1.48113694,2667.8,2667.4,0.0031668]
[1646501266448,1.48113694,2667.8,2667.2,0.00227403]
[1646501266647,1.48113694,2667.8,2667.5,0.00316657]
[1646501267250,1.53664396,2667.7,2667.5,0.00316657]
[1646501267448,1.48113694,2667.8,2667.5,0.00316657]
[1646501267649,1.48113694,2667.8,2667.3,0.00227403]
[1646501267948,1.48113694,2667.8,2667.5,0.00316654]
[1646501268954,1.48113694,2667.8,2667.3,0.00227403]
[1646501269154,1.53663604,2667.7,2667.5,0.00316651]
[1646501270002,1.53663604,2667.7,2667.2,0.00227403]
[1646501270202,1.53663604,2667.7,2667.1,1.11421907]
[1646501270402,1.53663604,2667.7,2667.5,0.00316656]
[1646501271205,1.53663604,2667.7,2667.2,0.93990403]
[1646501271403,1.53663604,2667.7,2667.2,0.93763]
[1646501271605,1.53663604,2667.7,2667.5,0.00316657]
[1646501271803,2.48113694,2667.8,2667.5,0.00316657]
[1646501272003,1.48113694,2667.8,2667.5,0.00316657]
[1646501272407,1.53666283,2667.7,2667.3,0.00227403]
[1646501272605,1.53666283,2667.7,2667.2,0.93763]
[1646501272905,1.48113694,2667.8,2667.5,0.00316653]
[1646501273105,0.00456414,2667.9,2667.5,0.00316653]
[1646501273750,0.00355705,2667.9,2667.4,1.87491]
[1646501273952,0.00355705,2667.9,2667.6,0.00186769]
[1646501274251,0.00355705,2667.9,2667.6,1.04718349]
[1646501274452,0.00355705,2667.9,2667.6,0.00186769]
[1646501274854,0.00355705,2667.9,2667.3,1.18747403]
[1646501275256,0.00355705,2667.9,2667.6,0.00316646]
[1646501275856,0.963194,2667.9,2667.6,0.00316646]
[1646501276057,1.91203671,2667.8,2667.3,0.00227403]
[1646501276357,1.91203671,2667.8,2666.7,2.44582]
[1646501276358,1.53653671,2667.7,2667.6,0.00316646]
[1646501277412,1.53653671,2667.7,2666.9,2.53130289]
[1646501277617,1.53653671,2667.6,2667.5,0.00322186]
[1646501277815,0.00355705,2667.9,2667.5,0.00322186]
[1646501278413,0.00355705,2667.9,2667.1,0.00227403]
[1646501278616,0.00355705,2667.9,2667.2,0.93765]
[1646501278816,0.00355705,2667.9,2667.6,0.00321227]
[1646501279617,0.00355705,2667.9,2667.3,0.00227403]
[1646501280019,0.00355705,2667.9,2667.6,0.00321224]
[1646501280818,0.00355705,2667.9,2667.3,0.00227403]
[1646501281052,1.54009376,2667.9,2667.2,0.93765]
[1646501281249,1.54009376,2667.9,2667.6,0.0031461]
[1646501282047,1.54009376,2667.9,2667.2,0.00227403]
[1646501282248,1.54009376,2667.9,2667.1,1.34382886]
[1646501282449,1.54009376,2667.9,2667.6,0.00314489]
[1646501283249,1.54009376,2667.9,2667.2,0.00227403]
[1646501283651,1.54009376,2667.9,2667.6,0.00314489]
[1646501284451,1.54009376,2667.9,2667.2,0.00227403]
[1646501284903,1.54009376,2667.9,2667.6,0.0031494]
[1646501285105,1.53653671,2667.8,2667.6,0.0031494]
[1646501285304,0.00355705,2667.9,2667.6,0.0031494]
[1646501285704,0.00355705,2667.9,2667.2,0.00227403]
[1646501286103,0.00355705,2667.9,2667.6,0.00315169]
[1646501286305,1.54019659,2667.9,2667.6,0.00315169]
[1646501286909,1.54019659,2667.9,2667.2,0.00227403]
[1646501287106,1.54019659,2667.9,2667.6,0.00315169]
[1646501287906,1.54019659,2667.9,2667.6,0.00208505]
[1646501288110,1.54019659,2667.9,2667.2,0.00227403]
[1646501288408,1.54019659,2667.9,2667.6,0.00315131]
[1646501289450,1.54019659,2667.9,2667.2,0.00227403]
[1646501289651,1.54019659,2667.9,2667.1,1.34382886]
[1646501289851,1.54019659,2667.9,2667.1,1.34610289]
[1646501290152,1.91569659,2667.9,2667.1,1.34610289]
[1646501290351,1.53663954,2667.8,2667.1,1.34610289]
[1646501291355,1.53663954,2667.8,2667.1,0.00227403]
[1646501292053,1.53663954,2667.8,2667.3,0.0020932]
[1646501292496,5.41213954,2667.8,2667.3,0.0020932]
[1646501292696,1.91213954,2667.7,2667.3,0.0020932]
[1646501292898,0.3755,2667.4,2667.0,0.00227403]
[1646501293095,0.3755,2667.4,2666.7,0.00227403]
[1646501293096,5.41213954,2667.3,2666.7,0.00227403]
[1646501293401,1.3755,2667.1,2666.6,1.1293]
[1646501294300,0.3755,2667.2,2666.6,1.1293]
[1646501294502,1.53704656,2667.1,2666.7,0.00359473]
[1646501294901,3.48089908,2667.4,2666.7,0.00359473]
[1646501295101,3.48089908,2667.4,2667.2,1.23490251]
[1646501295102,1.48089908,2667.4,2667.2,1.23490251]
[1646501295305,1.48089908,2667.4,2666.7,0.00586876]
[1646501295306,1.48089908,2667.4,2666.7,1.34610289]
[1646501295702,1.48089908,2667.4,2666.8,0.00359469]
[1646501296548,1.48089908,2667.4,2667.1,0.89332405]
[1646501296748,1.48089908,2667.4,2667.0,0.0034867]
[1646501297650,1.48089908,2667.4,2666.8,0.00227403]
[1646501297850,1.48089908,2667.4,2666.6,5.48189891]
[1646501298052,1.48089908,2667.4,2667.1,0.00348663]
[1646501298855,1.48089908,2667.4,2666.7,1.34610289]
[1646501299054,1.48089908,2667.4,2666.7,1.34382886]
[1646501299255,1.48089908,2667.4,2667.1,0.00348659]
[1646501300102,1.48089908,2667.4,2666.8,0.00227403]
[1646501300305,1.48089908,2667.4,2667.1,0.00334695]
[1646501301403,1.48089908,2667.4,2666.8,0.00227403]
[1646501301604,1.5369706,2667.3,2667.1,0.00334695]
[1646501301804,5.98089908,2667.4,2667.1,0.00334695]
[1646501302404,1.53698265,2667.3,2667.1,0.00334695]
[1646501302605,1.53698265,2667.3,2666.7,0.00227403]
[1646501302807,2.48089908,2667.4,2667.1,0.00334695]
[1646501303207,1.48089908,2667.4,2667.1,0.00334695]
[1646501303657,1.48089908,2667.4,2666.7,0.00227403]
[1646501304054,1.48089908,2667.4,2667.1,0.00335638]
[1646501304255,1.85639908,2667.4,2667.1,0.00335638]
[1646501304456,1.53701833,2667.3,2667.1,0.00335638]
[1646501304655,6.81139908,2667.4,2667.1,0.00335638]
[1646501304855,1.53702955,2667.3,2667.1,0.00335638]
[1646501305057,1.91252955,2667.3,2666.7,0.00227403]
[1646501305255,7.81139908,2667.4,2667.1,0.00335641]
[1646501305456,1.53701851,2667.3,2667.1,0.00335641]
[1646501306056,1.91251851,2667.3,2666.7,0.00227403]
[1646501306259,0.3755,2667.3,2666.6,2.26261005]
[1646501306458,4.31139908,2667.4,2667.1,0.00335641]
[1646501306657,1.53700873,2667.3,2667.1,0.00335641]
[1646501307299,1.91250873,2667.3,2666.7,0.00227403]
[1646501307500,0.3755,2667.3,2666.6,2.26261005]
[1646501307705,3.85639908,2667.4,2667.1,0.00335578]
[1646501308001,1.53697379,2667.3,2667.1,0.00335578]
[1646501308604,1.91247379,2667.3,2666.7,0.00227403]
[1646501308807,3.85639908,2667.4,2667.1,0.00335578]
[1646501309806,3.85639908,2667.4,2666.7,0.00227403]
[1646501310007,3.85639908,2667.4,2667.1,0.00335574]
[1646501310905,3.85639908,2667.4,2666.7,0.00227403]
[1646501311154,3.85639908,2667.4,2667.1,0.00335578]
[1646501312054,3.85639908,2667.4,2666.7,0.00227403]
[1646501312255,3.85639908,2667.4,2666.6,2.26261005]
[1646501312456,2.85639908,2667.4,2667.1,0.00335578]
[1646501313256,2.48089908,2667.4,2666.7,0.00227403]
[1646501313658,1.48089908,2667.4,2667.1,0.00185393]
[1646501314459,1.48089908,2667.4,2666.7,0.00227403]
[1646501314900,0.74844465,2667.8,2667.1,0.00185392]
[1646501315102,5.4263,2668.1,2667.1,0.00185392]
[1646501315299,1.53666578,2668.0,2667.1,0.00185392]
[1646501315698,1.53666578,2668.0,2667.0,1.34610289]
[1646501315900,1.53666578,2668.0,2667.6,0.93742]
[1646501316300,1.48386035,2667.9,2667.6,0.93742]
[1646501317301,1.48386035,2667.9,2667.6,0.93927358]
[1646501317502,0.00355705,2667.9,2667.6,0.93927358]
[1646501317702,0.00355705,2667.9,2667.6,1.31477358]
[1646501318102,0.57133106,2669.0,2668.0,0.93712]
[1646501318303,1.53625462,2668.9,2668.0,1.31262]
[1646501318548,1.53625462,2668.9,2668.5,0.89514516]
[1646501318754,1.53625462,2668.8,2668.5,0.89514516]
[1646501318958,3.16265428,2669.2,2668.5,0.89514516]
[1646501318959,1.53625462,2668.7,2668.5,0.89514516]
[1646501319153,1.48085223,2669.2,2668.5,0.89514516]
[1646501319357,1.53613434,2669.1,2668.5,0.89514516]
[1646501320455,1.53613434,2669.1,2668.6,0.93713]
[1646501320859,0.00341347,2668.9,2668.6,0.93713]
[1646501321057,0.00341347,2668.9,2668.6,1.87413]
[1646501321658,0.00341347,2668.9,2668.6,0.93713]
[1646501321861,1.53613434,2669.1,2668.6,0.93713]
[1646501322058,1.53613434,2669.1,2668.4,1.87425]
[1646501322059,0.00345983,2668.9,2668.4,1.87425]
[1646501322315,0.00345983,2668.9,2668.3,0.00161928]
[1646501323102,1.53613434,2669.0,2668.3,0.00161928]
[1646501323303,0.00345975,2668.9,2668.3,0.00161928]
[1646501324209,1.53613434,2669.0,2668.3,0.00161928]
[1646501324411,0.00345975,2668.9,2668.3,0.00161928]
[1646501324714,1.14808921,2668.7,2668.3,0.00161928]
[1646501326353,0.00334315,2668.9,2668.3,0.00161928]
[1646501326552,1.5363519,2669.0,2668.3,0.00161928]
[1646501327054,0.00334315,2668.9,2668.3,0.00161928]
[1646501327251,1.53969505,2668.9,2668.3,0.00161928]
[1646501327854,1.5363519,2668.9,2668.3,0.00161928]
[1646501328054,1.53969511,2668.9,2668.3,0.00161928]
[1646501328256,1.5363519,2668.8,2668.3,0.00161928]
[1646501328456,1.5363519,2668.7,2668.3,0.00161928]
[1646501328656,0.00334321,2668.9,2668.3,0.00161928]
[1646501329057,1.53634385,2669.0,2668.3,0.00161928]
[1646501329258,0.00335102,2668.9,2668.3,0.00161928]
[1646501330102,2.59133588,2669.0,2668.3,0.00161928]
[1646501330303,1.05499203,2669.0,2668.3,0.00161928]
[1646501330501,1.53963287,2668.9,2668.3,0.00161928]
[1646501331405,1.53628179,2668.9,2668.3,0.00161928]
[1646501331603,0.00335108,2668.9,2668.3,0.00161928]
[1646501332405,0.37885108,2668.9,2668.3,0.00161928]
[1646501332604,0.01436333,2669.1,2667.9,1.3889]
[1646501332605,0.3755,2668.6,2667.9,1.3889]
[1646501332807,0.3755,2668.6,2667.9,1.2017]
[1646501333005,1.3755,2668.6,2667.9,1.2017]
[1646501333550,1.3755,2668.6,2667.7,0.00335212]
[1646501333755,1.0224719,2668.5,2667.6,3.47214647]
[1646501334056,1.0224719,2668.5,2667.7,0.00335193]
[1646501334057,0.9724719,2668.5,2667.7,0.00335193]
[1646501334254,6.2021045,2668.8,2667.7,0.00335193]
[1646501334454,6.2021045,2668.8,2667.8,0.93742]
[1646501334455,1.53639043,2668.7,2667.8,0.93742]
[1646501334654,2.1518,2668.8,2667.8,0.93742]
[1646501334857,1.1518,2668.8,2667.8,0.93742]
[1646501335855,2.26898168,2668.8,2667.8,0.93742]
[1646501336956,3.20882975,2668.8,2667.8,0.93742]
[1646501337408,4.20882975,2668.8,2667.8,0.93742]
[1646501338005,3.26898168,2668.8,2667.9,1.05224571]
[1646501338304,2.26898168,2668.8,2667.9,1.05224571]
[1646501339312,2.26898168,2668.8,2667.8,0.93742]
[1646501339715,5.76898168,2668.8,2667.8,0.93742]
[1646501340016,2.26898168,2668.8,2667.7,1.13525199]
[1646501340212,1.53641951,2668.7,2667.7,1.13525199]
[1646501340812,1.53641951,2668.7,2667.7,2.25130784]
[1646501341052,1.53641951,2668.7,2667.7,2.24795585]
[1646501341351,1.53641951,2668.7,2667.7,2.24980936]
[1646501342152,1.53641951,2668.7,2667.7,2.24795585]
[1646501342352,1.53641951,2668.7,2667.7,2.24980936]
[1646501342755,0.3755,2668.6,2667.7,1.13375351]
[1646501343452,0.3755,2668.6,2667.7,1.1319]
[1646501343655,0.3755,2668.6,2667.7,1.13536279]
[1646501344056,1.17798201,2668.3,2667.7,1.13536279]
[1646501344257,2.65838046,2668.3,2667.7,0.00346279]
[1646501344458,1.48039845,2668.3,2667.7,0.00346279]
[1646501344656,1.48039845,2668.3,2667.6,1.34779134]
[1646501344908,1.48039845,2668.3,2667.7,0.00323414]
[1646501345909,1.48039845,2668.3,2667.6,1.34779134]
[1646501346108,1.48039845,2668.3,2667.7,0.00323414]
[1646501346710,3.5,2668.2,2667.7,0.00323414]
[1646501346910,1.85589845,2668.3,2667.7,0.00323414]
[1646501347111,1.85589845,2668.3,2667.4,1.3892]
[1646501347309,1.03520707,2668.1,2667.7,0.0031208]
[1646501348110,1.03520707,2668.1,2667.4,1.3892]
[1646501348313,1.41070707,2668.1,2667.4,0.1872]
[1646501348558,5.41228207,2668.0,2667.7,0.00312075]
[1646501348762,0.455,2667.9,2667.7,0.00312075]
[1646501348965,1.0,2667.8,2667.7,0.00312075]
[1646501349361,1.0,2667.8,2667.1,0.00227403]
[1646501349362,0.3755,2667.5,2667.1,0.00227403]
[1646501349561,0.3755,2667.5,2666.9,0.25]
[1646501349562,1.85590831,2667.5,2666.9,0.25]
[1646501349762,1.85590831,2667.5,2666.8,1.1627]
[1646501349962,1.85590831,2667.5,2666.7,0.00227403]
[1646501350564,1.48040831,2667.5,2667.1,1.09643013]
[1646501351967,1.48040831,2667.5,2667.2,0.00186438]
[1646501353010,1.48040831,2667.5,2667.1,1.09643013]
[1646501353208,1.48040831,2667.5,2667.2,0.00314898]
[1646501353808,1.5021058,2667.5,2667.2,0.00314898]
[1646501354209,1.5021058,2667.5,2667.1,1.09643013]
[1646501354408,1.5021058,2667.5,2667.2,0.00325119]
[1646501355412,1.5021058,2667.5,2666.9,1.81662987]
[1646501355614,1.5021058,2667.5,2667.2,0.00325119]
[1646501356656,1.5021058,2667.5,2666.9,0.87889987]
[1646501356856,1.50059323,2667.5,2667.2,0.00330893]
[1646501357859,1.50059323,2667.5,2666.9,0.00227403]
[1646501358061,1.50059323,2667.5,2667.2,0.00319569]
[1646501358961,1.50059323,2667.5,2667.0,0.89816016]
[1646501359363,1.50059323,2667.5,2667.2,0.00319569]
[1646501360207,1.50059323,2667.5,2666.9,0.00227403]
[1646501360505,1.50059323,2667.5,2667.2,0.0031321]
[1646501361105,0.92102793,2667.4,2667.2,0.0031321]
[1646501361506,0.92102793,2667.4,2666.9,0.00227403]
[1646501361707,0.92102793,2667.4,2667.2,0.00313779]
[1646501362307,1.50059323,2667.5,2667.2,0.00313779]
[1646501362707,1.50059323,2667.5,2666.8,0.94002403]
[1646501362908,1.50059323,2667.5,2667.2,0.00313783]
[1646501363858,1.50629404,2667.5,2666.8,0.94002403]
[1646501364158,1.50629404,2667.5,2667.2,0.00314186]
[1646501365160,1.50629404,2667.5,2666.8,0.94002403]
[1646501365458,1.50629404,2667.5,2667.2,0.00314642]
[1646501366258,1.50629404,2667.5,2666.8,0.94002403]
[1646501366460,1.50629404,2667.5,2667.2,0.00314642]
[1646501367504,1.50629404,2667.5,2666.8,0.00227403]
[1646501367704,1.50629404,2667.5,2667.2,0.003146]
[1646501368608,1.50629404,2667.5,2666.8,0.00227403]
[1646501368808,1.50629404,2667.5,2666.7,1.15493023]
[1646501369007,1.50629404,2667.5,2667.2,0.00314276]
[1646501369907,1.50629404,2667.5,2666.6,0.00227403]
[1646501369908,3.5,2667.4,2666.6,0.00227403]
[1646501370108,1.88179404,2667.5,2667.2,0.00314276]
[1646501371160,1.88179404,2667.5,2666.6,0.00227403]
[1646501371358,0.90133882,2667.3,2666.6,0.00227403]
[1646501372558,0.90133882,2667.3,2666.8,0.00314341]
[1646501372757,4.5,2667.4,2666.8,0.00314341]
[1646501373456,4.5,2667.4,2666.7,0.00227403]
[1646501373457,5.5,2667.4,2666.7,0.00227403]
[1646501373663,0.3755,2667.3,2667.0,0.00314331]
[1646501373861,5.5,2667.4,2667.0,0.00314331]
[1646501374361,1.0,2667.4,2667.0,0.00314331]
[1646501374562,1.0,2667.4,2666.7,0.00227403]
[1646501374826,1.50629404,2667.5,2667.1,0.00320576]
[1646501375017,1.50629404,2667.5,2667.1,1.23319584]
[1646501375818,0.02588573,2667.5,2667.1,3.10513008]
[1646501376020,0.02588573,2667.5,2667.2,0.00326584]
[1646501376221,0.02588573,2667.5,2667.2,1.14446584]
[1646501376819,0.02588573,2667.5,2667.2,1.51996584]
[1646501377021,0.02588573,2667.5,2667.2,1.5167]
[1646501377221,8.573e-05,2667.5,2667.3,3.0]
[1646501377421,1.14986,2668.7,2667.6,0.3755]
[1646501377819,1.14986,2668.7,2667.6,1.5167]
[1646501378220,0.00096,2668.7,2667.6,1.5167]
[1646501378419,0.55954499,2668.9,2668.4,0.93239633]
[1646501378420,1.53732022,2668.8,2668.4,0.93239633]
[1646501378662,1.53732022,2668.8,2667.7,0.2531968]
[1646501378663,1.53636022,2668.8,2667.7,0.2531968]
[1646501378868,0.00096,2668.7,2667.7,0.2531968]